[Event "Israel National League 2024"]
[Site "Israel"]
[Date "2024.01.19"]
[Round "3.14"]
[White "Dvoirys, Semen I."]
[Black "Zanan, Evgeny"]
[Result "1-0"]
[ECO "C70"]
[WhiteElo "2466"]
[BlackElo "2487"]
[Annotator "TA"]
[PlyCount "141"]
[EventDate "2024.01.07"]
[EventType "team-tourn"]
[EventCountry "ISR"]
[SourceTitle "playchess.com"]
[Source "ChessBase"]
[SourceQuality "1"]
[TimeControl "40/5400+30:1800+30"]

{[%evp 9,141,47,44,47,39,37,32,26,40,35,31,21,42,48,26,28,37,37,70,47,50,33,43,48,51,51,50,57,45,31,25,7,7,12,19,7,9,8,13,5,12,0,0,0,0,-7,26,25,15,19,134,144,133,133,141,110,139,125,171,152,160,151,297,302,295,291,289,270,255,277,277,265,280,291,254,209,209,209,291,264,264,247,186,175,158,157,666,641,633,207,2925,1841,1192,576,29961,29962,29960,29961,29965,29967,29968,29967,29968,29969,29969,29970,29971,29972,29972,29973,29974,29975,29975,29973,29973,29974,29974,29975,29975,29976,29976,29977,29977,29978,29979,29980,29980,29979,29979,29980,29980,29981,29981,29978]} 1. e4 {[%emt 0:00:07]} e5 {[%emt 0:00:33]} 2. Nf3 {[%emt 0:00:11]} Nc6 {[%emt 0:00:12]} 3. Bb5 {[%emt 0:00:09]} a6 {[%emt 0:00:09]} 4. Ba4 {[%emt 0:00:04]} Bc5 {[%emt 0:00:16]} 5. c3 {[%emt 0:03:44]} Nge7 {[%emt 0:01:38]} 6. d4 {[%emt 0:01:44] C70: Ruy Lopez: 3...a6 4 Ba4, Norwegian and Delayed Schliemann.} exd4 {[%emt 0:00:16]} 7. cxd4 {[%emt 0:00:11]} Bb4+ {[%emt 0:00:12]} 8. Nc3 {[%emt 0:05:22] White is slightly better.} d5 {[%emt 0:01:09]} 9. O-O {[%emt 0:04:43]} dxe4 {[%emt 0:18:25]} 10. Nxe4 {[%emt 0:00:39]} O-O {[%emt 0:00:33]} 11. a3 {[%emt 0:16:06]} Bd6 {[%emt 0:03:48]} 12. h3 {[%emt 0:00:08]} Bf5 {[%emt 0:02:09]} 13. Re1 {[%emt 0:00:30]} Bg6 {[%emt 0:11:00]} 14. Bg5 {[%emt 0:13:07] Bxc6 is the strong threat.} f6 {[%emt 0:04:45] [#]} 15. d5 $146 {[%emt 0:00:25]} ({Predecessor:} 15. Nxd6 Qxd6 16. Bh4 Bf7 17. Bg3 Qd7 18. Rc1 Rad8 19. b4 Nf5 20. Bf4 Kh8 21. Qd3 {1-0 Kiolbasa,O (2376)-Vaishali,R (2442) Olympiad Women-44 2022 (9.3)}) 15... Bxe4 {[%emt 0:15:01]} 16. Rxe4 {[%emt 0:00:53]} fxg5 {[%emt 0:02:52]} 17. dxc6 {[%emt 0:00:18]} Nxc6 {[%emt 0:00:08]} 18. Qd5+ {[%emt 0:00:44]} Kh8 {[%emt 0:00:09][%cal Od6h2] Black is weak on the light squares} 19. Bxc6 {[%emt 0:00:12]} (19. Nxg5 $2 Bh2+ 20. Kxh2 Qxd5 $19) (19. Qxg5 {simplifies} Qxg5 20. Nxg5 Ne5 21. Bb3) 19... bxc6 {[%emt 0:00:43]} 20. Qxc6 {[%emt 0:00:21]} (20. Qxg5 {simplifies} Qxg5 21. Nxg5 Rab8 22. b4) 20... Qf6 {[%emt 0:04:04][%cal Od6h2] Against Re6. Strongly threatening ...Bh2+!} 21. Qc2 {[%emt 0:01:26]} Rab8 {[%emt 0:01:06]} 22. Re2 {[%emt 0:04:16]} Rb5 {[%emt 0:14:39]} 23. Rae1 {[%emt 0:01:07]} h6 {[%emt 0:02:40]} 24. b4 {[%emt 0:02:22]} a5 {[%emt 0:07:14]} 25. Re6 {[%emt 0:07:56]} (25. bxa5 {simplifies} Rxa5 26. a4 Qf5 27. Re4) 25... Qf5 {[%emt 0:03:41]} 26. Qb2 {[%emt 0:12:25] And now Nd4 would win.} axb4 {[%emt 0:00:46]} 27. axb4 {[%emt 0:00:19]} Kh7 {[%emt 0:04:08] [#]} 28. Rxd6 $1 {[%emt 0:02:56]} cxd6 {[%emt 0:00:01]} 29. Nd4 $1 $40 {[%emt 0:00:07][%csl LRb5,LRf5][%mdl 128] White mounts an attack.} Qd3 {[%emt 0:02:09]} (29... Re5 $1 $11 {remains equal.} 30. Nxf5 Rxe1+ 31. Kh2 Rxf5) 30. Nxb5 $16 {[%emt 0:00:10]} Qxb5 {[%emt 0:00:02][%mdl 4096] Endgame KQR-KQR} 31. Re7 {[%emt 0:00:20][%csl Ge7][%cal Rb2g7] Inhibits Rf7.} Rg8 {[%emt 0:00:00]} 32. Qd4 {[%emt 0:00:37]} d5 {[%emt 0:00:17]} 33. Rc7 {[%emt 0:02:22] White is much more active.} Qe2 {[%emt 0:00:09]} (33... Qe8 $16 {might work better.} 34. Rc5 (34. Qxd5 Qe1+ 35. Kh2 Qxb4 $11) 34... Qe4 35. Rxd5 (35. Qxd5 Qxb4 36. Qd3+ Kh8 $11) 35... Qxd4 36. Rxd4 Kg6) 34. Rd7 $1 $18 {[%emt 0:00:35]} ({Stronger than} 34. Qxd5 Qe1+ 35. Kh2 Qxb4 36. Qf5+ Kh8 $11) 34... Qc4 {[%emt 0:01:35]} 35. Rxd5 {[%emt 0:00:29]} ({Reject} 35. Qxd5 $6 Qxb4 36. Qf5+ Kh8 $11) 35... Qxd4 {[%emt 0:00:55]} (35... Rc8 $16 36. Qxc4 Rxc4) 36. Rxd4 $16 {[%emt 0:00:01] KR-KR} Rc8 {[%emt 0:00:20]} 37. Rd1 {[%emt 0:01:12] Against Rc1} Rb8 {[%emt 0:00:00]} 38. Rb1 {[%emt 0:00:07]} Kg6 {[%emt 0:00:20]} 39. b5 {[%emt 0:02:37]} Rb6 {[%emt 0:00:01]} 40. g4 {[%emt 0:00:28]} Kf6 {[%emt 0:00:07]} 41. Kg2 {[%emt 0:30:08]} Ke5 {[%emt 0:30:28]} 42. Kg3 {[%emt 0:00:27]} Ke4 {[%emt 0:00:00]} 43. Rb3 {[%emt 0:00:00]} Kd4 {[%emt 0:00:00]} 44. h4 {[%emt 0:00:00]} gxh4+ {[%emt 0:00:00]} (44... Kc4 45. Rb2 $16) 45. Kxh4 {[%emt 0:00:00]} Ke4 {[%emt 0:00:00]} 46. Kg3 {[%emt 0:00:00] Black must now prevent f4.} g5 {[%emt 0:00:00]} 47. f3+ {[%emt 0:00:00][%cal Bf2f3,Bf3f4][%mdl 32]} Kd4 $2 {[%emt 0:00:00] [#] A mistake that costs the game.} (47... Kd5 $16) 48. f4 $1 $18 {[%emt 0:00:00]} Kc4 {[%emt 0:00:00]} 49. Rb1 {[%emt 0:00:00]} (49. Rb2 Kc3 50. Rb1) 49... gxf4+ $2 {[%emt 0:04:27]} (49... Kd5 50. f5 Ke5) 50. Kxf4 {[%emt 0:00:00] Intending Rc1+ and mate.} Kd3 {[%emt 0:00:02]} 51. Rd1+ {[%emt 0:00:00]} (51. Rb3+ $142 Kc4 52. Rb1) 51... Kc4 {[%emt 0:00:37]} 52. Rc1+ {[%emt 0:00:00] White mates.} Kd5 {[%emt 0:01:37] [#]} 53. Rc6 $1 {[%emt 0:00:00][%mdl 512]} Rxb5 {[%emt 0:00:14]} (53... Rb8 54. Rxh6) 54. Rxh6 {[%emt 0:00:00]} Rb1 {[%emt 0:00:03]} 55. g5 {[%emt 0:00:17][%cal Bg4g5,Bg5g6,Bg6g7][%mdl 32]} Rf1+ {[%emt 0:00:17]} 56. Kg4 {[%emt 0:00:03]} Ke5 {[%emt 0:00:02]} 57. Ra6 {[%emt 0:00:12]} Rh1 {[%emt 0:00:31]} 58. g6 {[%emt 0:00:40]} ({Not} 58. Ra5+ Ke6 $11) 58... Rg1+ {[%emt 0:00:31]} 59. Kh5 {[%emt 0:00:04]} Kf5 {[%emt 0:00:10]} 60. Kh6 {[%emt 0:00:09]} Rb1 {[%emt 0:00:17]} 61. Ra8 {[%emt 0:01:24]} Kf6 {[%emt 0:00:54]} 62. Rf8+ {[%emt 0:00:06]} Ke7 {[%emt 0:00:01]} 63. g7 {[%emt 0:00:28]} Rh1+ {[%emt 0:00:04]} 64. Kg6 {[%emt 0:00:07]} Rg1+ {[%emt 0:00:04]} 65. Kh7 {[%emt 0:00:04]} Rh1+ {[%emt 0:00:03] [#]} 66. Kg8 $1 {[%emt 0:00:05]} Rg1 {[%emt 0:00:58]} 67. Rf4 {[%emt 0:00:42]} Rg2 {[%emt 0:00:15]} 68. Rf1 {[%emt 0:01:34]} Rh2 {[%emt 0:01:17]} 69. Re1+ {[%emt 0:00:37]} Kd6 {[%emt 0:00:26]} 70. Re4 {[%emt 0:01:57]} Kd5 {[%emt 0:00:08]} 71. Re7 {[%emt 0:00:39] Weighted Error Value: White=0.17 (very precise) /Black=0.31} 1-0

[Event "Israel National League 2024"]
[Site "Israel"]
[Date "2024.01.19"]
[Round "3.15"]
[White "Bronstein, Or"]
[Black "Kargin, Arseny"]
[Result "1-0"]
[ECO "D17"]
[WhiteElo "2441"]
[BlackElo "2377"]
[Annotator "RC"]
[PlyCount "103"]
[EventDate "2024.01.07"]
[EventType "team-tourn"]
[EventCountry "ISR"]
[SourceTitle "playchess.com"]
[Source "ChessBase"]
[SourceQuality "1"]
[TimeControl "40/5400+30:1800+30"]

1. d4 {[%emt 0:00:43]} d5 {[%emt 0:00:22]} 2. c4 {[%emt 0:00:21]} c6 {[%emt 0:00:06]} 3. Nf3 {[%emt 0:00:07]} Nf6 {[%emt 0:00:04]} 4. Nc3 {[%emt 0:00:06]} dxc4 {[%emt 0:00:47]} 5. a4 {[%emt 0:01:26]} Bf5 {[%emt 0:00:51]} 6. Ne5 {[%emt 0:00:45]} Nbd7 {[%emt 0:00:26]} 7. Nxc4 {[%emt 0:00:09]} Nb6 {[%emt 0:01:17]} 8. Ne5 {[%emt 0:00:17]} a5 {[%emt 0:00:22]} 9. h4 {[%emt 0:00:15]} e6 {[%emt 0:04:29]} 10. f3 {[%emt 0:00:39]} h6 {[%emt 0:00:08]} 11. e4 {[%emt 0:00:06]} Bh7 {[%emt 0:00:08]} 12. Be3 {[%emt 0:00:21]} Nfd7 {[%emt 0:06:03]} 13. Nd3 {[%emt 0:00:49]} Bd6 {[%emt 0:01:08]} 14. Rh3 {[%emt 0:00:19]} O-O {[%emt 0:06:54]} 15. g4 {[%emt 0:01:51]} Nc4 {[%emt 0:12:35]} 16. Bf2 {[%emt 0:06:14]} Qe7 {[%emt 0:14:15]} 17. g5 {[%emt 0:26:01]} h5 {[%emt 0:05:30]} 18. b3 {[%emt 0:17:04]} Ncb6 {[%emt 0:02:23]} 19. Rc1 {[%emt 0:00:58]} Rad8 {[%emt 0:15:57]} 20. f4 {[%emt 0:06:57]} Ba3 {[%emt 0:04:55]} 21. Rc2 {[%emt 0:00:18]} c5 {[%emt 0:00:10]} 22. Bg2 {[%emt 0:08:43]} cxd4 {[%emt 0:04:03]} 23. Nb5 {[%emt 0:04:11]} Rc8 {[%emt 0:05:33]} 24. Bxd4 {[%emt 0:04:36]} e5 {[%emt 0:00:13]} 25. fxe5 {[%emt 0:03:16]} Rxc2 {[%emt 0:06:18]} 26. Qxc2 {[%emt 0:00:01]} Rc8 {[%emt 0:00:17]} 27. Qd2 {[%emt 0:02:17]} Nc5 {[%emt 0:04:43]} 28. Nxa3 {[%emt 0:03:59]} Nxb3 {[%emt 0:00:21]} 29. Qb2 {[%emt 0:00:13]} Nxd4 {[%emt 0:01:36]} 30. Qxd4 {[%emt 0:00:16]} Qxa3 {[%emt 0:00:35]} 31. Qxb6 {[%emt 0:00:01]} Qa1+ {[%emt 0:00:56]} 32. Kd2 {[%emt 0:08:59]} Qxa4 {[%emt 0:02:29]} 33. Qb2 {[%emt 0:00:39]} Bxe4 {[%emt 0:00:19]} 34. Bxe4 {[%emt 0:00:22]} Qxe4 {[%emt 0:00:01]} 35. Re3 {[%emt 0:00:33]} Qxh4 {[%emt 0:00:25]} 36. g6 {[%emt 0:02:55]} fxg6 {[%emt 0:00:01]} 37. e6 {[%emt 0:00:17]} Qg5 {[%emt 0:01:17]} 38. Qxb7 {[%emt 0:00:45]} Rf8 {[%emt 0:00:59]} 39. e7 {[%emt 0:00:44]} Re8 {[%emt 0:00:00]} 40. Qb3+ {[%emt 0:01:10]} Kh7 {[%emt 0:00:12]} 41. Qf7 {[%emt 0:02:41]} Qg2+ {[%emt 0:05:03]} 42. Re2 {[%emt 0:07:53]} Qc6 {[%emt 0:00:42]} 43. Re6 {[%emt 0:03:29]} Qg2+ {[%emt 0:00:46]} 44. Ke3 {[%emt 0:02:03]} Qg1+ {[%emt 0:03:14]} 45. Ke4 {[%emt 0:03:22]} Qh1+ {[%emt 0:05:10]} 46. Kd4 {[%emt 0:02:28]} Qg1+ {[%emt 0:06:45]} 47. Kd5 {[%emt 0:00:12]} Qg2+ {[%emt 0:01:07]} 48. Kd6 {[%emt 0:01:56]} Qa8 {[%emt 0:03:41]} 49. Nc5 {[%emt 0:02:03]} Qb8+ {[%emt 0:00:59]} 50. Kd5 {[%emt 0:00:15]} Qa8+ {[%emt 0:05:25]} 51. Kd4 {[%emt 0:00:02]} Qb8 {[%emt 0:00:19]} 52. Nb7 {[%emt 0:05:03]} 1-0

[Event "Israel National League 2024"]
[Site "Israel"]
[Date "2024.01.19"]
[Round "3.16"]
[White "Klenburg, Michael"]
[Black "Oratovsky, Michael"]
[Result "1/2-1/2"]
[ECO "E67"]
[WhiteElo "2331"]
[BlackElo "2412"]
[Annotator "RC"]
[PlyCount "95"]
[EventDate "2024.01.07"]
[EventType "team-tourn"]
[EventCountry "ISR"]
[SourceTitle "playchess.com"]
[Source "ChessBase"]
[SourceQuality "1"]
[TimeControl "40/5400+30:1800+30"]

1. d4 {[%emt 0:00:12]} Nf6 {[%emt 0:02:53]} 2. Nf3 {[%emt 0:00:27]} d6 {[%emt 0:04:26]} 3. c4 {[%emt 0:01:00]} g6 {[%emt 0:00:26]} 4. Nc3 {[%emt 0:00:22]} Nbd7 {[%emt 0:07:50]} 5. g3 {[%emt 0:02:42]} Bg7 {[%emt 0:02:55]} 6. Bg2 {[%emt 0:00:06]} O-O {[%emt 0:00:13]} 7. O-O {[%emt 0:00:10]} e5 {[%emt 0:00:23]} 8. e3 {[%emt 0:00:49]} c6 {[%emt 0:16:02]} 9. b3 {[%emt 0:01:27]} Re8 {[%emt 0:13:39]} 10. Bb2 {[%emt 0:04:10]} e4 {[%emt 0:04:35]} 11. Nd2 {[%emt 0:00:24]} d5 {[%emt 0:00:05]} 12. cxd5 {[%emt 0:04:24]} cxd5 {[%emt 0:01:01]} 13. f3 {[%emt 0:00:48]} Nb6 {[%emt 0:25:25]} 14. a4 {[%emt 0:10:27]} exf3 {[%emt 0:12:34]} 15. Qxf3 {[%emt 0:00:50]} Bg4 {[%emt 0:02:46]} 16. Qf2 {[%emt 0:04:33]} Bf5 {[%emt 0:02:39]} 17. h3 {[%emt 0:00:50]} Qd7 {[%emt 0:00:35]} 18. Kh2 {[%emt 0:01:22]} Bd3 {[%emt 0:00:21]} 19. Rfe1 {[%emt 0:00:31]} a5 {[%emt 0:00:31]} 20. Nf3 {[%emt 0:04:25]} Ne4 {[%emt 0:00:21]} 21. Nxe4 {[%emt 0:00:05]} Bxe4 {[%emt 0:00:10]} 22. Ne5 {[%emt 0:00:17]} Qe6 {[%emt 0:00:29]} 23. Bf1 {[%emt 0:02:35]} Rec8 {[%emt 0:00:50]} 24. Nd3 {[%emt 0:01:21]} Nd7 {[%emt 0:00:14]} 25. Rac1 {[%emt 0:00:30]} Qb6 {[%emt 0:00:19]} 26. Rxc8+ {[%emt 0:01:32]} Rxc8 {[%emt 0:00:02]} 27. Rc1 {[%emt 0:00:13]} Rxc1 {[%emt 0:01:16]} 28. Nxc1 {[%emt 0:00:06]} Qc7 {[%emt 0:00:51]} 29. Nd3 {[%emt 0:13:15]} h5 {[%emt 0:00:19]} 30. Kg1 {[%emt 0:03:28]} Bh6 {[%emt 0:00:47]} 31. Nf4 {[%emt 0:02:08]} Nf6 {[%emt 0:00:26]} 32. Qe1 {[%emt 0:09:21]} Bc2 {[%emt 0:00:31]} 33. Qc1 {[%emt 0:01:20]} g5 {[%emt 0:00:34]} 34. Bd3 {[%emt 0:07:25]} gxf4 {[%emt 0:00:10]} 35. gxf4 {[%emt 0:00:09]} Qd7 {[%emt 0:00:46]} 36. Qxc2 {[%emt 0:00:12]} Qxh3 {[%emt 0:00:08]} 37. Qg2+ {[%emt 0:00:12]} Qxg2+ {[%emt 0:00:21]} 38. Kxg2 {[%emt 0:00:05]} Bf8 {[%emt 0:00:34]} 39. Bc3 {[%emt 0:01:31]} b6 {[%emt 0:00:17]} 40. Be1 {[%emt 0:01:19]} Bb4 {[%emt 0:01:04]} 41. Bh4 {[%emt 0:31:59]} Kg7 {[%emt 0:06:13]} 42. Kf3 {[%emt 0:00:00]} Be7 {[%emt 0:02:58]} 43. Bb5 {[%emt 0:00:00]} Ng8 {[%emt 0:00:13]} 44. Bg3 {[%emt 0:00:00]} Bd6 {[%emt 0:03:47]} 45. Bc6 {[%emt 0:00:00]} Ne7 {[%emt 0:00:36]} 46. Bb7 {[%emt 0:00:00]} Kf6 {[%emt 0:08:19]} 47. Bh4+ {[%emt 0:00:00]} Ke6 {[%emt 0:00:11]} 48. Bxe7 {[%emt 0:00:33]} 1/2-1/2

[Event "Israel National League 2024"]
[Site "Israel"]
[Date "2024.01.19"]
[Round "3.17"]
[White "Veinberg, Nimrod"]
[Black "Pasman, Michael"]
[Result "1-0"]
[ECO "E73"]
[WhiteElo "2411"]
[BlackElo "2341"]
[Annotator "RC"]
[PlyCount "158"]
[EventDate "2024.01.07"]
[EventType "team-tourn"]
[EventCountry "ISR"]
[SourceTitle "playchess.com"]
[Source "ChessBase"]
[SourceQuality "1"]
[TimeControl "40/5400+30:1800+30"]

1. d4 {[%emt 0:00:02]} Nf6 {[%emt 0:00:13]} 2. c4 {[%emt 0:00:18]} g6 {[%emt 0:00:10]} 3. Nc3 {[%emt 0:00:15]} Bg7 {[%emt 0:00:06]} 4. e4 {[%emt 0:00:20]} d6 {[%emt 0:00:11]} 5. Be2 {[%emt 0:01:35]} O-O {[%emt 0:00:21]} 6. h4 {[%emt 0:00:45]} c5 {[%emt 0:01:32]} 7. d5 {[%emt 0:02:21]} b5 {[%emt 0:01:44]} 8. cxb5 {[%emt 0:01:20]} a6 {[%emt 0:01:48]} 9. a4 {[%emt 0:04:28]} axb5 {[%emt 0:08:07]} 10. Bxb5 {[%emt 0:00:29]} e6 {[%emt 0:03:20]} 11. dxe6 {[%emt 0:04:09]} Bxe6 {[%emt 0:22:16]} 12. Nge2 {[%emt 0:10:35]} Na6 {[%emt 0:11:14]} 13. Nf4 {[%emt 0:08:58]} Nb4 {[%emt 0:04:04]} 14. h5 {[%emt 0:06:29]} d5 {[%emt 0:12:57]} 15. hxg6 {[%emt 0:16:15]} hxg6 {[%emt 0:00:29]} 16. exd5 {[%emt 0:11:08]} Bf5 {[%emt 0:00:22]} 17. O-O {[%emt 0:05:27]} Nc2 {[%emt 0:04:32]} 18. Rb1 {[%emt 0:00:26]} Nb4 {[%emt 0:14:21]} 19. Be3 {[%emt 0:00:40]} Bxb1 {[%emt 0:00:10]} 20. Nxb1 {[%emt 0:02:54]} Nfxd5 {[%emt 0:06:17]} 21. Nxd5 {[%emt 0:01:44]} Qxd5 {[%emt 0:00:03]} 22. Qxd5 {[%emt 0:00:27]} Nxd5 {[%emt 0:00:02]} 23. Bxc5 {[%emt 0:00:07]} Rfc8 {[%emt 0:00:04]} 24. Ba3 {[%emt 0:02:02]} Bf8 {[%emt 0:02:55]} 25. Rd1 {[%emt 0:00:23]} Nb6 {[%emt 0:00:43]} 26. Bxf8 {[%emt 0:06:00]} Kxf8 {[%emt 0:00:01]} 27. Nc3 {[%emt 0:00:01]} Nc4 {[%emt 0:00:49]} 28. b3 {[%emt 0:00:48]} Na5 {[%emt 0:02:50]} 29. Nd5 {[%emt 0:01:44]} Nxb3 {[%emt 0:00:36]} 30. Nb6 {[%emt 0:01:55]} Rd8 {[%emt 0:00:04]} 31. Rb1 {[%emt 0:01:24]} Nd2 {[%emt 0:00:07]} 32. Rb4 {[%emt 0:00:43]} Ra7 {[%emt 0:00:43]} 33. f3 {[%emt 0:00:06]} Rb8 {[%emt 0:01:44]} 34. Nd5 {[%emt 0:00:01]} Rd8 {[%emt 0:00:21]} 35. Ne3 {[%emt 0:03:19]} Ke7 {[%emt 0:00:38]} 36. Kf2 {[%emt 0:00:08]} Rc7 {[%emt 0:00:57]} 37. a5 {[%emt 0:02:18]} Rc1 {[%emt 0:00:25]} 38. a6 {[%emt 0:00:11]} Ra1 {[%emt 0:00:31]} 39. Ba4 {[%emt 0:02:38]} Ra2 {[%emt 0:00:30]} 40. Kg3 {[%emt 0:02:09]} Ra8 {[%emt 0:00:57]} 41. Nd5+ {[%emt 0:06:38]} Kd6 {[%emt 0:00:34]} 42. Nc3 {[%emt 0:07:28]} Ra3 {[%emt 0:21:11]} 43. Rd4+ {[%emt 0:02:58]} Kc5 {[%emt 0:00:16]} 44. Rxd2 {[%emt 0:06:35]} Rxc3 {[%emt 0:00:07]} 45. Rc2 {[%emt 0:10:19]} Rxc2 46. Bxc2 {[%emt 0:00:00]} Rxa6 {[%emt 0:00:21]} 47. Kf4 {[%emt 0:00:10]} Kd4 {[%emt 0:03:45]} 48. Kg5 {[%emt 0:00:58]} Rb6 {[%emt 0:07:41]} 49. g4 {[%emt 0:00:43]} Ke3 {[%emt 0:00:37]} 50. f4 {[%emt 0:01:33]} f6+ {[%emt 0:00:59]} 51. Kxg6 {[%emt 0:00:03]} Kxf4 {[%emt 0:00:02]} 52. Bf5 {[%emt 0:00:09]} Rd6 {[%emt 0:00:09]} 53. Kf7 {[%emt 0:00:29]} Kg5 {[%emt 0:00:07]} 54. Ke7 {[%emt 0:00:27]} Ra6 {[%emt 0:00:06]} 55. Kd7 {[%emt 0:00:36]} Ra2 {[%emt 0:01:07]} 56. Ke7 {[%emt 0:00:05]} Ra5 {[%emt 0:00:35]} 57. Bc8 {[%emt 0:00:26]} Ra7+ {[%emt 0:00:16]} 58. Kd6 {[%emt 0:00:09]} Ra8 {[%emt 0:00:43]} 59. Be6 {[%emt 0:00:09]} Ra7 {[%emt 0:00:59]} 60. Bf5 {[%emt 0:00:13]} Ra5 {[%emt 0:00:17]} 61. Be6 {[%emt 0:00:13]} Ra4 {[%emt 0:00:48]} 62. Ke7 {[%emt 0:00:14]} Re4 {[%emt 0:00:31]} 63. Kf7 {[%emt 0:00:14]} Rb4 {[%emt 0:00:39]} 64. Ke7 {[%emt 0:00:10]} Rb7+ {[%emt 0:00:26]} 65. Kd6 {[%emt 0:00:02]} Ra7 {[%emt 0:00:45]} 66. Bc8 {[%emt 0:00:09]} Rg7 {[%emt 0:00:11]} 67. Bf5 {[%emt 0:00:09]} Rb7 {[%emt 0:00:14]} 68. Be6 {[%emt 0:00:21]} Kf4 {[%emt 0:00:11]} 69. Bc8 {[%emt 0:00:19]} Rb6+ {[%emt 0:01:14]} 70. Ke7 {[%emt 0:00:07]} Ke5 {[%emt 0:00:30]} 71. Kf7 {[%emt 0:00:14]} Rc6 {[%emt 0:00:39]} 72. Bf5 {[%emt 0:00:02]} Rd6 {[%emt 0:00:20]} 73. Ke7 {[%emt 0:00:09]} Ra6 {[%emt 0:00:19]} 74. Kf7 {[%emt 0:00:02]} Kf4 {[%emt 0:00:45]} 75. Kg6 {[%emt 0:00:06]} Rb6 {[%emt 0:00:07]} 76. Kh6 {[%emt 0:00:11]} Rb5 {[%emt 0:00:17]} 77. Bd3 {[%emt 0:02:18]} Rg5 {[%emt 0:00:09]} 78. Bg6 {[%emt 0:01:12]} Rxg4 {[%emt 0:00:12]} 79. Bd3 {[%emt 0:01:06]} f5 {[%emt 0:00:04]} 1-0